bitfinex/quotes_ETHUSD_20260208
["timestamp","ask_amount","ask_price","bid_price","bid_amount"]
[1770576531866,0.001,2117.9,2117.3,1.18070829]
[1770576532066,0.001,2117.9,2117.2,1.18076739]
[1770576532270,0.001,2117.9,2117.1,2.22887658]
[1770576533583,0.001,2117.9,2117.0,1.18197489]
[1770576533880,0.9631037,2117.9,2117.0,0.0011]
[1770576534085,0.9621037,2117.7,2117.0,0.0011]
[1770576534257,0.9621037,2117.7,2116.8,0.0011]
[1770576535090,0.9621037,2117.5,2116.8,0.0011]
[1770576536705,0.9621037,2117.1,2116.1,0.0011]
[1770576536866,4.2631037,2117.0,2116.1,0.0011]
[1770576537066,0.9621037,2116.9,2116.1,0.0011]
[1770576537379,0.9621037,2116.7,2116.1,0.0011]
[1770576539188,1.18113956,2116.6,2116.1,0.0011]
[1770576539392,0.9621037,2116.5,2116.1,0.0011]
[1770576539587,4.2631037,2116.4,2115.9,0.0011]
[1770576539971,0.9621037,2116.3,2115.9,0.0011]
[1770576540816,3.301,2116.4,2115.9,0.0011]
[1770576541025,0.9621037,2116.9,2115.9,1.04912336]
[1770576541314,0.9621037,2116.9,2116.0,1.18147448]
[1770576541315,1.18102796,2116.8,2116.0,1.18147448]
[1770576541467,1.18102796,2116.8,2116.0,2.22949784]
[1770576541674,1.18102796,2116.8,2116.3,0.0011]
[1770576542084,0.6,2116.6,2116.3,0.0011]
[1770576544084,1.78118842,2116.6,2116.3,0.0011]
[1770576544280,2.74329212,2116.6,2116.0,0.0011]
[1770576544479,1.78118842,2116.6,2116.0,0.0011]
[1770576548310,0.9621037,2116.5,2115.8,0.0011]
[1770576548514,0.9621037,2116.3,2115.4,0.0011]
[1770576548684,4.2641037,2116.2,2115.4,0.0011]
[1770576549711,1.18141864,2116.1,2115.4,0.0011]
[1770576550216,8.02767459,2116.2,2115.4,1.04912336]
[1770576550217,4.48336752,2116.2,2115.4,1.04912336]
[1770576550413,3.302,2116.2,2115.4,1.04912336]
[1770576550583,4.48336355,2116.2,2115.4,1.04912336]
[1770576550982,4.48336355,2116.2,2115.4,0.0011]
[1770576551414,4.48336355,2116.2,2115.4,1.04912336]
[1770576551808,4.48336355,2116.2,2115.4,0.0011]
[1770576551990,0.9621037,2116.1,2115.4,0.0011]
[1770576552505,4.48336355,2116.2,2115.4,0.0011]
[1770576552691,5.44546725,2116.2,2115.4,0.0011]
[1770576553283,4.48336355,2116.2,2115.4,0.0011]
[1770576554297,4.48336355,2116.2,2115.6,0.0011]
[1770576558405,5.47716729,2116.2,2115.6,0.0011]
[1770576558705,0.99380374,2116.1,2115.6,0.0011]
[1770576559291,2.17527822,2116.0,2115.6,0.0011]
[1770576559489,2.17527822,2116.0,2115.4,0.0011]
[1770576561212,1.18147448,2116.0,2115.4,0.0011]
[1770576561412,5.71970166,2116.1,2115.4,0.0011]
[1770576563504,1.18153031,2115.9,2115.4,0.0011]
[1770576563695,0.99380374,2115.8,2115.2,0.0011]
[1770576563904,4.29680374,2115.7,2115.1,0.0011]
[1770576564491,3.303,2115.7,2115.1,1.00215042]
[1770576566013,3.303,2115.7,2115.3,0.0011]
[1770576566220,3.303,2115.7,2115.3,1.00215042]
[1770576567122,3.303,2115.7,2115.3,0.0011]
[1770576569624,3.303,2115.7,2115.1,0.0011]
[1770576569625,5.47847672,2115.7,2115.1,0.0011]
[1770576569928,5.47847672,2115.7,2114.7,0.0011]
[1770576569929,0.99380374,2115.6,2114.7,0.0011]
[1770576570227,2.77555746,2115.5,2114.7,0.0011]
[1770576571624,0.99380374,2115.4,2114.7,0.0011]
[1770576572528,1.18186545,2115.3,2114.7,0.0011]
[1770576573226,0.99380374,2115.2,2114.7,0.0011]
[1770576573429,0.99380374,2115.0,2114.5,0.0011]
[1770576573594,3.303,2115.1,2114.5,0.0011]
[1770576573595,4.29680374,2115.1,2114.5,0.0011]
[1770576573797,0.99380374,2115.0,2114.5,0.0011]
[1770576574707,1.18208898,2114.9,2114.5,0.0011]
[1770576575805,2.17589272,2114.9,2114.3,0.0011]
[1770576576119,1.18208898,2114.9,2114.3,0.0011]
[1770576577427,4.48608898,2114.9,2114.3,0.0011]
[1770576578539,0.99380374,2114.8,2113.8,1.18270163]
[1770576578707,2.17600452,2114.7,2113.8,1.18270163]
[1770576579202,0.6,2114.6,2113.8,1.18270163]
[1770576580208,1.59380374,2114.6,2113.8,1.18270163]
[1770576581028,1.1823126,2114.5,2113.8,1.18270163]
[1770576581514,1.78229685,2114.6,2113.8,1.18270163]
[1770576582530,1.78229685,2114.6,2113.8,2.18375205]
[1770576582830,1.78229685,2114.6,2113.9,1.00105042]
[1770576582831,1.78225814,2114.6,2113.9,1.00105042]
[1770576583423,1.78225814,2114.6,2113.9,2.18366963]
[1770576584347,0.6,2114.6,2114.0,1.00105042]
[1770576585039,3.305,2114.7,2114.0,1.00105042]
[1770576585533,3.305,2114.9,2114.2,0.928775]
[1770576586926,3.905,2114.9,2114.2,0.928775]
[1770576587546,3.905,2114.9,2114.3,0.928775]
[1770576587736,0.6,2114.9,2114.3,0.928775]
[1770576587935,1.0098285,2115.6,2114.3,0.928775]
[1770576587936,3.305,2115.3,2114.3,0.928775]
[1770576588946,0.001,2115.8,2114.3,0.928775]
[1770576588947,8.03157821,2115.7,2114.3,0.928775]
[1770576589321,9.04140671,2115.7,2114.3,0.928775]
[1770576589521,1.0098285,2115.6,2114.3,0.928775]
[1770576589722,1.18175372,2115.5,2114.5,0.928775]
[1770576590928,0.001,2114.7,2114.5,0.928775]
[1770576591265,0.001,2114.7,2114.4,0.0011]
[1770576592920,0.601,2114.7,2114.4,0.0011]
[1770576594077,1.18225669,2114.6,2114.4,0.0011]
[1770576594556,1.18225669,2114.6,2114.1,0.0011]
[1770576596968,0.601,2114.7,2114.1,0.0011]
[1770576597474,1.78320483,2114.7,2114.1,0.0011]
[1770576598081,1.78320803,2114.7,2114.1,0.0011]
[1770576598982,1.78320926,2114.7,2114.1,0.929875]
[1770576599551,1.78320926,2114.7,2114.1,0.0011]
[1770576600287,2.79303776,2114.7,2114.1,0.0011]
[1770576600579,1.0098285,2114.6,2114.1,0.0011]
[1770576601082,1.78320926,2114.7,2114.1,0.0011]
[1770576601449,0.601,2114.7,2114.1,0.0011]
[1770576601667,1.78322632,2114.7,2114.1,0.0011]
[1770576602484,2.79305482,2114.7,2114.1,0.0011]
[1770576602791,2.79305482,2114.7,2114.3,0.0011]
[1770576603084,1.78322632,2114.7,2114.3,0.0011]
[1770576604495,0.601,2114.7,2114.3,0.0011]
[1770576604786,0.001,2114.7,2114.4,0.928775]
[1770576605477,0.001,2114.7,2114.3,0.0011]
[1770576605682,1.18320395,2114.7,2114.3,0.0011]
[1770576605893,0.001,2114.7,2114.3,0.0011]
[1770576606259,0.001,2114.7,2114.3,0.929875]
[1770576606672,0.32576518,2115.1,2114.5,0.928775]
[1770576606871,0.32676518,2115.1,2114.5,0.928775]
[1770576607780,1.50874956,2115.1,2114.4,1.18236852]
[1770576607958,0.32676518,2115.1,2114.4,1.18236852]
[1770576608788,1.0098285,2115.0,2114.3,0.0011]
[1770576609113,1.0098285,2115.0,2114.1,0.0011]
[1770576609391,1.0108285,2114.9,2114.1,0.0011]
[1770576611186,1.0098285,2114.7,2114.1,0.0011]
[1770576611487,3.305,2114.6,2114.1,0.0011]
[1770576611875,0.001,2114.5,2114.1,0.0011]
[1770576612993,0.601,2114.5,2114.1,0.0011]
[1770576613295,1.78331538,2114.5,2114.1,0.0011]
[1770576613696,0.601,2114.5,2114.1,0.0011]
[1770576614900,1.78332408,2114.5,2114.1,0.0011]
[1770576615095,1.78332408,2114.5,2113.6,0.929875]
[1770576615398,1.78332408,2114.5,2113.6,2.11265476]
[1770576615570,2.7821696,2114.5,2113.6,1.18387976]
[1770576615770,0.99784552,2114.4,2113.6,1.18387976]
[1770576616475,1.78432408,2114.5,2113.6,2.10898252]
[1770576616476,0.001,2114.3,2113.6,2.10898252]
[1770576617009,0.001,2114.2,2113.6,2.10898252]
[1770576617295,0.001,2114.4,2113.6,2.10898252]
[1770576618403,0.001,2114.4,2113.6,0.92620276]
[1770576618698,0.001,2114.4,2113.6,0.0011]
[1770576618906,0.6,2114.3,2113.6,0.0011]
[1770576619266,1.18348037,2114.2,2113.6,0.0011]
[1770576621586,0.6,2114.3,2113.6,0.92620276]
[1770576621812,1.18336272,2114.5,2113.6,0.92620276]
[1770576622108,0.001,2114.4,2113.6,0.92620276]
[1770576622675,0.001,2114.4,2113.6,0.0011]
[1770576623078,0.99884552,2114.4,2113.6,0.0011]
[1770576623414,0.99784552,2114.1,2113.3,0.0011]
[1770576623578,0.99784552,2113.9,2113.3,0.0011]
[1770576624408,4.48959224,2114.0,2112.1,1.18361893]
[1770576624409,0.99784552,2113.7,2112.1,1.18361893]
[1770576624710,0.1024,2113.5,2112.4,2.10855486]
[1770576624895,4.30384552,2113.4,2112.4,0.92510276]
[1770576625208,0.99784552,2113.3,2112.3,1.18350583]
[1770576625715,2.18188545,2113.2,2112.2,2.1086976]
[1770576626297,0.001,2113.1,2112.2,2.1086976]
[1770576626611,0.001,2113.1,2112.2,1.18359484]
[1770576626776,0.99884552,2113.1,2112.0,5.65977849]
[1770576626972,0.99884552,2113.1,2112.2,1.1835958]
[1770576627297,0.99884552,2113.1,2112.2,1.18357259]
[1770576627298,0.001,2113.1,2112.2,1.18357259]
[1770576627882,0.001,2113.1,2112.0,5.65988757]
[1770576628294,0.001,2113.1,2112.0,4.73478481]
[1770576628496,0.001,2113.1,2112.1,0.92510276]
[1770576629295,0.001,2113.1,2112.4,0.0011]
[1770576631630,0.001,2113.1,2112.4,0.92620276]
[1770576631920,5.73000527,2113.3,2112.4,0.92620276]
[1770576632217,0.99884552,2113.2,2112.4,0.0011]
[1770576632799,0.99784552,2113.0,2112.4,0.0011]
[1770576633239,0.99784552,2112.8,2112.4,0.0011]
[1770576633434,4.30484552,2112.8,2112.4,0.0011]
[1770576633727,0.001,2112.7,2112.4,0.0011]
[1770576634107,0.001,2112.6,2112.4,0.0011]
[1770576634522,0.001,2112.6,2111.9,2.10887093]
[1770576634715,3.307,2112.8,2112.0,0.92510276]
[1770576635028,3.308,2112.8,2112.0,0.92510276]
[1770576635208,4.49131865,2112.8,2112.0,0.92510276]
[1770576635404,0.001,2112.7,2112.0,0.92510276]
[1770576636035,0.001,2112.6,2112.0,0.92510276]
[1770576636201,0.001,2112.6,2111.7,4.73507268]
[1770576636202,0.001,2112.6,2111.7,0.92510276]
[1770576636406,0.001,2112.6,2111.9,1.18376414]
[1770576636735,0.001,2112.5,2111.9,1.18374228]
[1770576636924,0.001,2112.5,2111.7,5.66061368]
[1770576636925,0.001,2112.7,2111.8,1.1837832]
[1770576637230,0.99884552,2112.7,2111.8,1.1837832]
[1770576637409,0.001,2112.6,2112.0,1.1836983]
[1770576637608,0.001,2112.6,2112.0,2.10881117]
[1770576637810,0.001,2112.6,2112.1,0.92510276]
[1770576638116,3.307,2112.8,2112.1,0.92510276]
[1770576638312,0.001,2112.7,2112.1,0.92510276]
[1770576638501,0.001,2112.7,2112.0,1.18366165]
[1770576638702,0.001,2112.6,2112.0,1.18366165]
[1770576639839,0.001,2112.6,2111.9,1.18374015]
[1770576640023,0.001,2112.6,2112.1,1.18365244]
[1770576640606,0.001,2112.6,2112.2,0.92510276]
[1770576640937,0.001,2112.6,2112.2,0.92620276]
[1770576641119,1.18292798,2113.4,2112.2,0.92620276]
[1770576641319,0.001,2113.3,2112.2,0.92620276]
[1770576641923,0.001,2113.2,2112.2,0.92620276]
[1770576642818,0.001,2113.2,2112.4,0.92510276]
[1770576644646,0.99784552,2113.0,2112.2,1.18468401]
[1770576644827,1.18320791,2112.9,2112.2,0.0011]
[1770576645009,2.12937365,2112.9,2112.2,0.0011]
[1770576645211,0.32417307,2112.8,2112.2,0.0011]
[1770576645436,0.6,2112.7,2112.2,0.0011]
[1770576645636,0.601,2112.7,2112.2,0.0011]
[1770576645842,0.001,2112.6,2112.2,0.0011]
[1770576647437,0.001,2112.5,2112.2,0.0011]
[1770576648814,0.001,2112.5,2112.0,0.0011]
[1770576649336,0.001,2112.5,2112.0,1.00522333]
[1770576649536,0.001,2112.5,2112.0,0.0011]
[1770576653537,0.001,2112.5,2112.2,0.0011]
[1770576654538,1.50856469,2112.6,2112.2,0.0011]
[1770576654725,0.001,2112.5,2112.2,0.0011]
[1770576655445,1.50856469,2112.6,2112.2,0.0011]
[1770576655743,0.001,2112.4,2112.2,0.0011]
[1770576657448,1.50853741,2112.6,2112.2,0.0011]
[1770576657751,0.001,2112.5,2112.2,0.0011]
[1770576658272,0.001,2112.4,2112.2,0.0011]
[1770576658469,0.001,2112.5,2112.2,0.0011]
[1770576659062,0.001,2112.4,2112.2,0.0011]
[1770576659355,0.001,2112.5,2112.2,0.0011]
[1770576660237,0.94616574,2112.5,2112.2,0.0011]
[1770576660560,2.10853741,2112.6,2112.0,0.0011]
[1770576660743,0.001,2112.4,2112.0,0.0011]
[1770576660935,0.2804,2112.5,2112.0,1.00522333]
[1770576661746,0.2804,2112.5,2112.1,1.18365607]
[1770576661960,0.2804,2112.5,2112.0,2.18891092]
[1770576662352,0.2814,2112.5,2112.1,1.00412333]
[1770576663061,0.2814,2112.5,2112.0,1.18478759]
[1770576665563,0.2814,2112.5,2112.2,0.0011]
[1770576665765,0.001,2112.3,2112.2,0.0011]
[1770576667166,0.19686693,2112.5,2112.4,1.00412333]
[1770576668970,1.38029958,2112.5,2112.2,0.0011]
[1770576669372,0.32441526,2112.4,2112.2,0.0011]
[1770576676050,1.3087861,2112.4,2112.2,0.0011]
[1770576676965,2.49227755,2112.4,2112.2,0.0011]
[1770576677160,2.49227755,2112.4,2111.1,0.0011]
[1770576677161,0.98437084,2112.3,2111.6,1.18393227]
[1770576677358,0.98437084,2112.3,2111.5,1.18395462]
[1770576677576,0.98437084,2112.3,2111.1,0.0011]
[1770576677577,0.98437084,2112.1,2111.3,1.1840771]
[1770576677779,2.76797087,2112.2,2112.1,0.0011]
[1770576677980,2.76797087,2112.2,2111.3,1.1851771]
[1770576678383,0.98437084,2112.1,2111.3,1.18519438]
[1770576678877,2.16893732,2112.3,2111.3,2.17489162]
[1770576679061,1.31529879,2112.2,2111.3,1.18519341]
[1770576679262,1.31595483,2112.1,2111.3,1.18518171]
[1770576679464,1.51647109,2112.0,2111.3,0.0011]
[1770576679665,0.3251271,2111.9,2111.3,0.0011]
[1770576681457,0.3251271,2111.9,2111.3,1.18520458]
[1770576681655,0.3251271,2111.9,2111.4,0.98969821]
[1770576683063,0.3251271,2111.9,2111.3,1.18520458]
[1770576683268,0.3251271,2111.9,2111.3,1.18410458]
[1770576683585,0.3251271,2111.9,2111.1,0.99079821]
[1770576684580,0.3251271,2111.9,2111.2,0.98969821]
[1770576685761,0.3251271,2111.9,2111.3,2.17380279]
[1770576685956,0.3251271,2111.9,2111.4,0.98969821]
[1770576686161,0.001,2112.3,2111.5,0.98969821]
[1770576688286,0.001,2112.3,2111.6,2.17363456]
[1770576688589,0.001,2112.3,2111.7,0.98969821]
[1770576688801,0.001,2112.3,2111.6,1.18393635]
[1770576689159,0.001,2112.3,2111.6,2.17363456]
[1770576689662,0.001,2111.9,2111.6,2.17363456]
[1770576691505,0.001,2111.9,2111.6,1.18393635]
[1770576692804,0.001,2111.9,2111.4,1.18404849]
[1770576693296,0.001,2111.9,2111.4,2.1737467]
[1770576693494,0.001,2111.9,2111.5,0.98969821]
[1770576693698,0.001,2112.3,2111.5,0.98969821]
[1770576694196,0.001,2112.3,2111.7,0.98969821]
[1770576694985,0.001,2112.3,2111.8,2.17352243]
[1770576699109,0.001,2112.3,2111.9,0.98969821]
[1770576699294,0.3253363,2112.6,2111.9,0.98969821]
[1770576699690,0.3253363,2112.6,2112.0,1.18371212]
[1770576701291,0.98437084,2112.5,2111.6,3.309]
[1770576701492,0.98437084,2112.5,2112.0,0.0011]
[1770576701715,0.98537084,2112.4,2112.0,0.0011]
[1770576702188,0.001,2112.4,2112.0,0.0011]
[1770576705294,0.96048532,2112.4,2112.0,0.0011]
[1770576705812,2.14398725,2112.4,2112.0,0.0011]
[1770576706588,2.14398725,2112.4,2111.3,0.0011]
[1770576706589,0.95948532,2112.2,2111.3,0.0011]
[1770576706997,1.55948532,2112.2,2111.3,0.0011]
[1770576707191,0.95948532,2112.1,2111.3,1.18520156]
[1770576707915,0.95948532,2112.1,2111.3,0.0011]
[1770576708088,0.95948532,2111.9,2111.3,0.0011]
[1770576709593,0.95948532,2111.9,2111.0,0.0011]
[1770576710101,0.95948532,2111.7,2111.0,0.0011]
[1770576710417,0.95948532,2111.5,2111.0,0.0011]
[1770576712618,1.18410458,2111.3,2111.0,0.0011]
[1770576713612,0.95948532,2111.3,2111.0,0.0011]
[1770576713817,0.6,2111.4,2111.2,0.0011]
[1770576714516,2.14339783,2111.7,2111.2,0.0011]
[1770576715197,1.18382422,2111.8,2111.2,0.0011]
[1770576715400,4.49279137,2111.9,2111.2,0.0011]
[1770576715806,5.45227669,2111.9,2111.2,0.0011]
[1770576716319,5.45225412,2111.9,2111.2,0.0011]
[1770576717613,0.6,2111.8,2111.2,0.0011]
[1770576718420,0.95948532,2111.7,2111.2,0.0011]
[1770576719701,0.6,2111.8,2111.2,0.0011]
[1770576719890,1.78385396,2111.8,2111.2,0.0011]
[1770576720607,0.6,2111.8,2111.2,1.00124469]
[1770576721820,3.309,2111.9,2111.2,1.00124469]
[1770576722014,3.309,2111.9,2111.3,1.18410458]
[1770576722421,4.49277007,2111.9,2111.3,1.18410458]
[1770576723531,3.309,2111.9,2111.3,1.18410458]
[1770576723897,3.309,2111.9,2111.2,0.0011]
[1770576723898,0.95948532,2111.8,2111.2,0.0011]
[1770576724127,0.95948532,2111.8,2111.0,0.0011]
[1770576725909,0.95948532,2111.6,2111.0,0.0011]
[1770576727427,0.001,2111.7,2111.0,1.00124469]
[1770576728132,0.001,2111.7,2111.0,1.18533166]
[1770576732832,0.001,2111.7,2111.1,1.00014469]
[1770576733244,0.001,2111.7,2111.2,1.18416066]
[1770576735544,0.001,2112.1,2111.4,0.95749079]
[1770576737445,0.001,2112.1,2111.2,1.18416066]
[1770576737645,0.001,2112.1,2111.0,1.18532708]
[1770576737646,0.99793967,2112.1,2111.0,1.18532708]
[1770576737852,0.99793967,2112.1,2111.1,1.18420971]
[1770576738069,1.59693967,2111.9,2111.2,0.0011]
[1770576738427,1.59793967,2111.9,2111.2,0.0011]
[1770576738954,0.99693967,2111.8,2111.2,0.0011]
[1770576739658,1.18385328,2111.8,2111.2,0.0011]
[1770576741930,1.78481133,2111.9,2111.2,0.0011]
[1770576742126,0.601,2111.9,2111.2,0.0011]
[1770576742331,0.601,2111.9,2111.2,0.95859079]
[1770576743030,0.001,2111.9,2111.2,0.95859079]
[1770576743729,0.001,2111.9,2111.3,2.14159537]
[1770576743930,0.001,2111.9,2111.4,0.95749079]
[1770576746163,0.001,2111.9,2111.5,1.18399242]
[1770576746753,0.001,2111.9,2111.5,2.14148321]
[1770576747966,0.001,2111.9,2111.5,1.18399242]
[1770576748265,0.001,2111.9,2111.4,4.73596968]
[1770576751040,0.001,2111.9,2111.4,4.73706968]
[1770576751364,0.001,2111.9,2111.5,0.95749079]
[1770576751365,0.001,2111.7,2111.5,0.95749079]
[1770576751537,0.001,2111.7,2111.4,4.73706968]
[1770576751734,0.001,2111.7,2111.4,0.0011]
[1770576752150,0.001,2111.7,2111.4,0.95859079]
[1770576753163,0.001,2111.7,2111.5,1.18399242]
[1770576755172,0.001,2111.7,2111.4,0.0011]
[1770576758855,0.001,2111.7,2111.4,0.95859079]
[1770576759974,0.001,2111.7,2111.2,0.0011]
[1770576759975,0.99793967,2111.7,2111.2,0.0011]
[1770576760275,0.99693967,2111.6,2111.2,0.0011]
[1770576761543,1.18488488,2111.7,2111.2,0.0011]
[1770576761544,0.001,2111.7,2111.2,0.0022]
[1770576763478,0.001,2111.7,2111.6,0.0011]
[1770576765872,0.93325762,2111.7,2111.6,0.0011]
[1770576767183,0.001,2111.7,2111.6,0.0011]
[1770576769165,0.001,2111.7,2111.6,0.0022]
[1770576769371,0.001,2111.9,2111.6,0.0011]
[1770576775391,0.93325762,2111.9,2111.6,0.0011]
[1770576776089,0.001,2111.9,2111.6,0.0011]
[1770576776390,0.001,2111.9,2111.8,0.0011]
[1770576782792,0.001,2111.9,2111.6,0.0011]
[1770576782793,0.93325762,2111.9,2111.6,0.0011]
[1770576783193,2.11703353,2111.9,2111.6,0.0011]
[1770576784904,0.001,2111.9,2111.6,0.0011]
[1770576786499,0.001,2111.9,2111.6,1.18503635]
[1770576789606,0.93325762,2111.9,2111.6,0.0011]
[1770576789988,0.001,2111.7,2111.6,0.0011]
[1770576797010,0.001,2111.7,2111.5,1.18399242]
[1770576798213,0.001,2111.7,2111.4,1.18510672]
[1770576799397,0.001,2111.7,2111.4,0.0011]
[1770576799815,0.001,2111.7,2111.4,1.18514608]
[1770576801717,0.001,2111.7,2111.4,0.0011]
[1770576802490,0.001,2111.7,2111.6,0.0011]
[1770576803304,0.97363506,2111.9,2111.6,0.0011]
[1770576805404,2.1606103,2112.1,2111.6,0.0011]
[1770576805714,0.97592604,2112.0,2111.6,0.0011]
[1770576806112,1.57592604,2112.0,2111.6,0.0011]
[1770576807005,0.97592604,2111.9,2111.6,0.0011]
[1770576807823,0.97592604,2111.9,2111.2,0.0011]
[1770576808117,4.28492604,2111.9,2111.2,0.0011]
[1770576808321,0.97592604,2111.8,2111.2,0.0011]
[1770576808900,0.97592604,2111.6,2111.2,0.0011]
[1770576809100,1.18388028,2111.7,2111.2,0.0011]
[1770576809920,2.15980632,2111.7,2111.2,0.0011]
[1770576810626,0.97592604,2111.7,2111.2,0.0011]
[1770576810801,0.6,2112.0,2111.2,0.98872279]
[1770576811122,1.18371425,2112.0,2111.3,1.18410458]
[1770576811329,2.16061173,2112.1,2111.3,1.18410458]
[1770576811700,1.18468569,2112.1,2111.3,2.17172737]
[1770576812811,0.001,2112.1,2111.3,2.17172737]
[1770576813323,0.001,2112.1,2111.4,0.98762279]
[1770576814127,0.001,2112.1,2111.5,0.98872279]
[1770576814338,0.001,2111.9,2111.5,0.98872279]
[1770576814509,0.001,2112.4,2111.6,0.98762279]
[1770576815204,0.001,2112.4,2111.8,0.98762279]
[1770576817021,0.001,2112.6,2111.8,0.98762279]
[1770576817217,0.32562905,2113.2,2112.1,1.18365607]
[1770576817528,0.32562905,2113.2,2111.8,4.7346243]
[1770576817529,0.97592604,2113.0,2111.8,4.73522565]
[1770576817734,0.97592604,2113.0,2111.9,1.18376014]
[1770576817934,0.97592604,2113.0,2111.9,1.18373134]
[1770576819346,0.97592604,2112.8,2111.9,2.17139096]
[1770576819508,1.18320791,2112.9,2112.0,0.98762279]
[1770576820010,0.97592604,2112.8,2111.9,1.18376817]
[1770576820329,0.97592604,2112.8,2111.7,1.18385311]
[1770576821337,0.97592604,2112.8,2111.8,1.18382261]
[1770576822513,2.15924596,2112.7,2111.7,1.18388028]
[1770576823534,2.15924596,2112.7,2111.7,2.17150307]
[1770576824722,2.15924596,2112.7,2111.8,0.98762279]
[1770576824911,0.93193615,2113.0,2111.8,0.98762279]
[1770576826420,0.93193615,2113.0,2111.6,0.98176059]
[1770576826608,0.93193615,2113.0,2111.9,0.0011]
[1770576826812,0.001,2112.5,2111.9,0.0011]
[1770576830438,0.001,2112.5,2111.9,0.98286059]
[1770576831146,0.001,2112.5,2111.9,0.0011]
[1770576831345,0.93293615,2112.5,2111.9,0.0011]
[1770576831552,2.11638826,2112.5,2111.9,0.0011]
[1770576834368,0.93193615,2112.4,2111.9,0.0011]
[1770576836036,2.11548015,2112.3,2111.9,0.0011]
[1770576836249,0.93193615,2112.2,2111.6,0.0011]
[1770576836551,0.93193615,2112.2,2111.3,0.0011]
[1770576836552,0.93193615,2112.1,2111.3,0.0011]
[1770576838033,0.93193615,2111.9,2111.3,0.0011]
[1770576840442,0.93193615,2111.9,2111.1,0.0011]
[1770576840443,0.93193615,2111.7,2111.1,0.0011]
[1770576840761,0.93193615,2111.5,2110.9,0.0011]
[1770576844135,0.93193615,2111.3,2110.4,0.0011]
[1770576844333,1.18404849,2111.4,2110.2,0.98286059]
[1770576844542,0.93193615,2111.2,2110.2,0.98286059]
[1770576845148,3.31,2111.1,2110.2,0.98286059]
[1770576847161,3.31,2111.1,2109.6,5.72183411]
[1770576847162,0.93193615,2110.9,2109.6,5.72183411]
[1770576847361,0.93193615,2110.9,2109.4,4.7406424]
[1770576847362,0.93193615,2110.9,2110.0,5.72105241]
[1770576847567,3.31,2110.8,2110.1,2.16650537]
[1770576848244,0.93193615,2111.1,2110.3,1.18466568]
[1770576848447,4.49425524,2111.1,2110.3,2.16642627]
[1770576848865,5.42619139,2111.1,2110.2,1.18467989]
[1770576849971,0.93193615,2111.0,2110.0,1.18479126]
[1770576850193,0.93193615,2111.0,2108.2,5.69446721]
[1770576850194,0.93193615,2111.0,2109.8,1.1849416]
[1770576851084,0.93193615,2111.0,2109.7,4.73999215]
[1770576851085,0.93193615,2111.0,2109.7,1.18497245]
[1770576851257,0.93193615,2110.8,2109.7,1.18497245]
[1770576851577,0.93193615,2110.8,2110.1,0.0011]
[1770576851802,2.11637733,2110.7,2110.1,0.0011]
[1770576852078,4.49444118,2110.7,2110.1,0.0011]
[1770576852243,0.93293615,2110.9,2110.1,0.98286059]
[1770576852244,1.18535309,2110.9,2110.1,0.98286059]
[1770576852571,0.001,2110.9,2110.1,0.98286059]
[1770576853778,0.001,2110.9,2110.2,1.18472182]
[1770576853952,0.001,2110.9,2110.3,0.98176059]
[1770576855977,0.001,2110.9,2110.1,0.0011]
[1770576856179,0.001,2110.9,2110.1,0.9474424]
[1770576858261,0.96156814,2110.9,2110.1,1.1858411]
[1770576858767,0.001,2110.9,2110.1,2.1321835]
[1770576859088,0.96156814,2110.9,2110.1,1.1858411]
[1770576859287,0.96156814,2110.9,2110.1,1.18587732]
[1770576860282,0.96056814,2110.7,2110.1,0.0011]
[1770576861979,0.96056814,2110.7,2109.5,4.74044251]
[1770576862185,1.18438506,2110.8,2109.3,0.0011]
[1770576862186,6.93448758,2110.2,2109.3,0.0011]
[1770576862382,0.96056814,2109.9,2109.3,0.0011]
[1770576863965,4.73847609,2110.4,2109.3,0.0011]
[1770576863966,1.18450522,2110.6,2109.4,0.9463424]
[1770576864286,0.96056814,2110.7,2109.5,2.13145735]
[1770576866388,1.18449729,2110.6,2109.6,0.9463424]
[1770576867758,1.18447407,2110.7,2109.6,0.9463424]
[1770576868490,0.001,2110.9,2109.8,0.9463424]
[1770576868491,1.18532895,2110.9,2109.8,0.9463424]
[1770576872593,1.18532895,2110.9,2109.9,1.18489027]
[1770576872793,1.18532895,2110.9,2110.0,0.9463424]
[1770576873508,2.14589709,2110.9,2110.0,0.9463424]
[1770576874997,1.18532895,2110.9,2110.1,1.18477797]
[1770576875189,0.001,2110.9,2110.1,2.13112037]
[1770576876203,0.001,2110.7,2110.1,2.13112037]
[1770576877197,0.001,2110.7,2110.2,0.9463424]
[1770576879272,0.001,2110.7,2110.4,0.9463424]
[1770576879472,0.001,2110.9,2110.4,0.9463424]
[1770576881478,0.001,2110.9,2110.6,0.9463424]
[1770576883219,0.001,2110.9,2110.5,1.18455342]
[1770576883528,0.001,2110.9,2110.4,5.68455609]
[1770576883529,0.96156814,2110.9,2110.2,1.18468829]
[1770576883824,0.96156814,2110.9,2110.3,1.1846577]
[1770576885319,0.001,2110.9,2110.4,1.18460432]
[1770576885693,0.001,2110.9,2110.1,0.98019875]
[1770576888013,0.001,2110.9,2110.2,2.16602057]
[1770576888516,0.001,2110.7,2110.3,0.98019875]
[1770576888707,0.001,2110.9,2110.4,0.98019875]
[1770576890104,0.94552742,2111.7,2110.6,0.98019875]
[1770576890301,2.12941007,2111.7,2110.6,0.98019875]
[1770576891600,1.18388265,2111.7,2110.6,0.98019875]
[1770576891796,3.311,2112.0,2110.6,0.98019875]
[1770576891797,4.7351234,2111.9,2110.6,0.98019875]
[1770576891997,5.68065082,2111.9,2110.6,0.98019875]
[1770576892193,5.68065082,2111.9,2110.7,1.18444118]
[1770576892506,5.68065082,2111.9,2110.8,0.98019875]
[1770576892914,0.94552742,2111.8,2110.8,0.98019875]
[1770576893097,0.94552742,2111.8,2110.7,1.18444118]
[1770576893621,0.94552742,2111.8,2110.7,2.16463993]
[1770576894121,1.18376817,2111.9,2110.8,0.98019875]
[1770576894318,4.49475438,2112.0,2111.0,0.98019875]